[Event "US Masters 2024"]
[Site "Charlotte"]
[Date "2024.11.30"]
[Round "5.1"]
[White "Burke, John M"]
[Black "Caruana, Fabiano"]
[Result "0-1"]
[ECO "C02"]
[WhiteElo "2573"]
[BlackElo "2805"]
[Annotator "RC"]
[PlyCount "134"]
[EventDate "2024.09.23"]
[EventType "swiss"]
[EventCountry "USA"]
[SourceTitle "playchess.com"]
[Source "ChessBase"]
[SourceQuality "1"]
[TimeControl "5400+30"]

1. e4 {[%emt 0:00:14]} e6 {[%emt 0:01:40]} 2. d4 {[%emt 0:00:05]} d5 {[%emt 0:00:03]} 3. e5 {[%emt 0:00:20]} c5 {[%emt 0:00:31]} 4. c3 {[%emt 0:00:04]} Nc6 {[%emt 0:00:26]} 5. Nf3 {[%emt 0:00:06]} Bd7 {[%emt 0:00:20]} 6. Be2 {[%emt 0:00:48]} Nge7 {[%emt 0:00:29]} 7. O-O {[%emt 0:00:18]} cxd4 {[%emt 0:00:41]} 8. cxd4 {[%emt 0:00:05]} Nf5 {[%emt 0:00:02]} 9. Nc3 {[%emt 0:00:27]} a6 {[%emt 0:05:59]} 10. Kh1 {[%emt 0:03:14]} Rc8 {[%emt 0:00:15]} 11. a3 {[%emt 0:04:21]} Be7 {[%emt 0:10:32]} 12. g4 {[%emt 0:07:42]} Nh4 {[%emt 0:00:19]} 13. Nxh4 {[%emt 0:00:04]} Bxh4 {[%emt 0:00:04]} 14. f4 {[%emt 0:04:30]} Be7 {[%emt 0:10:42]} 15. Rf3 {[%emt 0:10:46]} Qb6 {[%emt 0:12:52]} 16. Be3 {[%emt 0:04:39]} Na5 {[%emt 0:00:17]} 17. Rb1 {[%emt 0:01:28]} Nc4 {[%emt 0:05:21]} 18. Bf2 {[%emt 0:05:14]} Qc6 {[%emt 0:08:49]} 19. Na2 {[%emt 0:13:57]} a5 {[%emt 0:03:11]} 20. Rc3 {[%emt 0:03:38]} a4 {[%emt 0:01:40]} 21. Nc1 {[%emt 0:04:34]} b5 {[%emt 0:02:13]} 22. Bd3 {[%emt 0:02:54]} Qb7 {[%emt 0:02:38]} 23. Ne2 {[%emt 0:00:47]} h5 {[%emt 0:05:57]} 24. gxh5 {[%emt 0:03:28]} Rxh5 {[%emt 0:00:04]} 25. Qg1 {[%emt 0:02:21]} Kf8 {[%emt 0:05:31]} 26. Qg4 {[%emt 0:09:26]} g6 {[%emt 0:00:34]} 27. Rc2 {[%emt 0:01:04]} Kg7 {[%emt 0:01:31]} 28. Ng1 {[%emt 0:02:25]} Rch8 {[%emt 0:00:48]} 29. Nf3 {[%emt 0:00:05]} b4 {[%emt 0:00:19]} 30. axb4 {[%emt 0:00:59]} Qxb4 {[%emt 0:00:16]} 31. Qg1 {[%emt 0:04:26]} a3 {[%emt 0:04:39]} 32. bxa3 {[%emt 0:00:27]} Qxa3 {[%emt 0:00:03]} 33. Qf1 {[%emt 0:02:57]} Ba4 {[%emt 0:01:53]} 34. Ra1 {[%emt 0:00:11]} Qb4 {[%emt 0:01:19]} 35. Be1 {[%emt 0:01:25]} Qb3 {[%emt 0:00:18]} 36. Qe2 {[%emt 0:01:11]} Bc6 {[%emt 0:06:22]} 37. Kg1 {[%emt 0:00:25]} Qb6 {[%emt 0:01:18]} 38. Rca2 {[%emt 0:00:45]} Rb8 {[%emt 0:02:40]} 39. Ra6 {[%emt 0:01:05]} Qb5 {[%emt 0:01:19]} 40. Ra7 {[%emt 0:04:31]} Rb7 {[%emt 0:00:07]} 41. Ra8 {[%emt 0:00:42]} Rc7 {[%emt 0:00:52]} 42. R8a2 {[%emt 0:00:33]} Qb8 {[%emt 0:00:07]} 43. Bf2 {[%emt 0:01:03]} Rb7 {[%emt 0:01:11]} 44. Bg3 {[%emt 0:00:59]} Rb3 {[%emt 0:01:40]} 45. Kh1 {[%emt 0:00:04]} Rh8 {[%emt 0:02:16]} 46. Rg1 {[%emt 0:00:17]} Kf8 {[%emt 0:01:57]} 47. Ng5 {[%emt 0:00:49]} Qb6 {[%emt 0:00:40]} 48. Bf2 {[%emt 0:00:31]} Bxg5 {[%emt 0:00:17]} 49. fxg5 {[%emt 0:00:28]} Rh3 {[%emt 0:00:43]} 50. Rg3 {[%emt 0:00:37]} Rxg3 {[%emt 0:00:58]} 51. hxg3 {[%emt 0:00:04]} Qd8 {[%emt 0:00:20]} 52. Bc2 {[%emt 0:00:58]} Rb8 {[%emt 0:00:31]} 53. Qg4 {[%emt 0:00:32]} Kg7 {[%emt 0:00:41]} 54. Qf4 {[%emt 0:00:16]} Kg8 {[%emt 0:00:31]} 55. Ra7 {[%emt 0:01:15]} Rb7 {[%emt 0:00:31]} 56. Rxb7 {[%emt 0:00:27]} Bxb7 {[%emt 0:00:03]} 57. Kg2 {[%emt 0:00:47]} Bc6 {[%emt 0:00:09]} 58. Kh3 {[%emt 0:01:03]} Qe8 {[%emt 0:00:23]} 59. Be1 {[%emt 0:00:20]} Ba4 {[%emt 0:00:06]} 60. Bd3 {[%emt 0:00:15]} Nb2 {[%emt 0:01:28]} 61. Bb1 {[%emt 0:00:15]} Bb5 {[%emt 0:00:02]} 62. Bc3 {[%emt 0:00:41]} Bd3 {[%emt 0:00:58]} 63. Bxb2 {[%emt 0:00:58]} Bxb1 {[%emt 0:00:03]} 64. Qc1 {[%emt 0:00:32]} Be4 {[%emt 0:01:08]} 65. Qc5 {[%emt 0:00:21]} Kg7 {[%emt 0:00:11]} 66. g4 {[%emt 0:00:45]} Qh8+ {[%emt 0:00:04]} 67. Kg3 {[%emt 0:00:03]} Qh1 {[%emt 0:00:03]} 0-1

[Event "US Masters 2024"]
[Site "Charlotte"]
[Date "2024.11.30"]
[Round "5.2"]
[White "Theodorou, Nikolas"]
[Black "Park, Evan"]
[Result "1-0"]
[ECO "D02"]
[WhiteElo "2612"]
[BlackElo "2375"]
[Annotator "TA"]
[PlyCount "59"]
[EventDate "2024.09.23"]
[EventType "swiss"]
[EventCountry "USA"]
[SourceTitle "playchess.com"]
[Source "ChessBase"]
[SourceQuality "1"]
[TimeControl "5400+30"]

{[%evp 14,59,0,-12,22,0,33,21,29,6,36,44,53,24,41,31,43,24,43,44,45,44,38,14,17,6,3,8,62,45,42,33,8,9,56,60,60,64,589,591,609,620,601,588,602,562,29997,29998]} 1. d4 {[%emt 0:00:11]} Nf6 {[%emt 0:00:04]} 2. Nf3 {[%emt 0:00:04]} d5 {[%emt 0:00:43]} 3. Bf4 {[%emt 0:00:05]} e6 {[%emt 0:00:25]} 4. e3 {[%emt 0:00:04]} c5 {[%emt 0:00:06]} 5. Nbd2 {[%emt 0:00:03]} Nc6 {[%emt 0:00:05]} 6. c3 {[%emt 0:00:05]} Bd6 {[%emt 0:00:32]} 7. Bg3 {[%emt 0:00:09]} O-O {[%emt 0:00:06]} 8. Bd3 {[%emt 0:00:05]} g6 {[%emt 0:01:37]} 9. O-O {[%emt 0:00:05]} Nh5 {[%emt 0:03:04]} 10. Bxd6 {[%emt 0:07:14]} Qxd6 {[%emt 0:00:29] The position is equal.} 11. Re1 {[%emt 0:05:28]} Nf6 {[%emt 0:07:57]} 12. dxc5 {[%emt 0:07:18]} Qxc5 {[%emt 0:00:06]} 13. e4 {[%emt 0:00:04]} dxe4 {[%emt 0:07:22]} 14. Nxe4 {[%emt 0:00:03]} Nxe4 {[%emt 0:00:12]} 15. Bxe4 {[%emt 0:00:03]} a5 {[%emt 0:03:56]} 16. h4 {[%emt 0:03:42]} a4 {[%emt 0:02:04]} 17. Qc1 {[%emt 0:01:16]} Kg7 {[%emt 0:02:12]} 18. b4 {[%emt 0:05:12]} axb3 {[%emt 0:01:42]} 19. axb3 {[%emt 0:00:09][%cal Ba2b3,Bb3b4][%mdl 32]} Rxa1 {[%emt 0:01:38]} 20. Qxa1 {[%emt 0:00:03]} Rd8 {[%emt 0:02:32]} (20... Qb6 $11) 21. b4 $14 {[%emt 0:08:08]} Qc4 {[%emt 0:01:33]} 22. h5 {[%emt 0:08:44][%cal Bh4h5,Bh5h6][%mdl 32] Black must now prevent Bxc6.} f6 {[%emt 0:03:35]} 23. Qc1 {[%emt 0:00:02]} e5 {[%emt 0:01:45] Against Qf4} (23... gxh5 $11 24. Nd2 Qb5) 24. h6+ {[%emt 0:00:22]} Kg8 {[%emt 0:03:37]} 25. Qe3 {[%emt 0:00:04] [#] aiming for Qb6.} Bg4 $2 {[%emt 0:03:59][%mdl 8192] This costs Black the game.} ({Black should try} 25... Qb5 $14) 26. Qb6 $18 {[%emt 0:04:20]} Rd7 {[%emt 0:15:40]} 27. b5 {[%emt 0:00:28]} Nd8 {[%emt 0:01:54]} 28. Qxf6 {[%emt 0:00:33]} Bxf3 {[%emt 0:04:34]} 29. Bxf3 {[%emt 0:03:28]} Qxc3 {[%emt 0:00:52] [#]} 30. Bd5+ $1 {[%emt 0:00:17][%mdl 512] Weighted Error Value: White=0.05 (flawless) /Black=0.61.  Loses game:     	---       	Black=1      Mistake:       	---       	Black=2      Inaccurate:     	---       	Black=3      OK:         	White=6     	Black=6      Best:        	White=3     	Black=1} 1-0

[Event "US Masters 2024"]
[Site "Charlotte"]
[Date "2024.11.30"]
[Round "5.3"]
[White "Moradiabadi, Elshan"]
[Black "Oparin, Grigoriy"]
[Result "1/2-1/2"]
[ECO "E16"]
[WhiteElo "2515"]
[BlackElo "2653"]
[Annotator "TA"]
[PlyCount "62"]
[EventDate "2024.09.23"]
[EventType "swiss"]
[EventCountry "USA"]
[SourceTitle "playchess.com"]
[Source "ChessBase"]
[SourceQuality "1"]
[TimeControl "5400+30"]

{[%evp 13,62,29,27,12,10,-15,-22,-17,14,0,0,0,14,-27,0,-24,-21,-15,0,0,0,0,0,0,0,0,0,-20,-11,-16,-23,-25,-26,-23,-23,-20,-9,-16,-13,-21,-3,-5,-4,-14,-8,-24,0,-15,0,-17,0]} 1. d4 {[%emt 0:08:59]} Nf6 {[%emt 0:00:10]} 2. c4 {[%emt 0:00:03]} e6 {[%emt 0:00:06]} 3. Nf3 {[%emt 0:00:02]} b6 {[%emt 0:00:34]} 4. g3 {[%emt 0:00:02]} Bb7 {[%emt 0:00:53]} 5. Bg2 {[%emt 0:00:05]} Bb4+ {[%emt 0:00:19]} 6. Bd2 {[%emt 0:00:58]} c5 {[%emt 0:00:22]} 7. O-O {[%emt 0:01:14]} O-O {[%emt 0:01:13]} 8. Nc3 {[%emt 0:05:42][%cal Od4d5,Bb1c3,Bc3b5,Bb5d4,Bd4b3][%mdl 32]} cxd4 {[%emt 0:06:41]} 9. Nb5 {[%emt 0:00:22]} Be7 {[%emt 0:04:27]} 10. Nbxd4 {[%emt 0:01:53]} Na6 {[%emt 0:06:18]} 11. Rc1 {[%emt 0:01:30]} Nc5 {[%emt 0:02:16]} 12. Bf4 {[%emt 0:03:02]} a6 {[%emt 0:08:23]} 13. Ne1 {[%emt 0:00:10][%cal Bf3e1,Be1d3,Bd3c5][%mdl 32]} (13. b4 $5 Nce4 $8 14. Qb3 $11) 13... d5 {[%emt 0:03:29]} 14. Nd3 {[%emt 0:03:34]} Rc8 {[%emt 0:17:33]} 15. Nb3 {[%emt 0:15:15]} (15. Ne5 {with more complications.} Bd6 16. b4 Nce4 17. cxd5 Bxd5 18. Nec6) 15... dxc4 {[%emt 0:12:00]} 16. Ndxc5 $1 {[%emt 0:00:16]} Bxg2 {[%emt 0:00:04]} 17. Qxd8 {[%emt 0:00:46]} Rfxd8 {[%emt 0:00:06]} 18. Kxg2 {[%emt 0:00:03]} cxb3 {[%emt 0:00:11]} 19. Nxb3 {[%emt 0:00:04]} Nd5 {[%emt 0:00:18] Against Bc7} 20. Rxc8 {[%emt 0:00:33]} Rxc8 {[%emt 0:00:05]} 21. Rc1 {[%emt 0:00:02]} Nxf4+ {[%emt 0:03:05]} 22. gxf4 {[%emt 0:00:01]} Rxc1 {[%emt 0:00:05]} 23. Nxc1 $11 {[%emt 0:00:02][%mdl 4096] Endgame. KB-KN} f5 {[%emt 0:00:47]} 24. Nd3 {[%emt 0:02:09]} Bd6 {[%emt 0:00:16]} 25. h3 {[%emt 0:02:04]} Kf7 {[%emt 0:00:17]} 26. Kf3 {[%emt 0:00:09]} h6 {[%emt 0:02:41]} 27. b3 {[%emt 0:02:22]} Ke7 {[%emt 0:13:12]} 28. Ke3 {[%emt 0:04:21]} Kf6 {[%emt 0:00:44]} 29. Kf3 {[%emt 0:00:06]} Ke7 {[%emt 0:04:09]} 30. Ke3 {[%emt 0:00:02]} Kf6 {[%emt 0:00:04]} 31. Kf3 {[%emt 0:00:03]} Ke7 {[%emt 0:00:06] An interesting draw.   Weighted Error Value: White=0.07 (flawless) /Black=0.07 (flawless) .  Inaccurate:     	White=1     	Black=2      OK:         	White=10    	Black=9      Strong:       	White=1     	---} 1/2-1/2

[Event "US Masters 2024"]
[Site "Charlotte"]
[Date "2024.11.29"]
[Round "5.4"]
[White "Samant Aditya S"]
[Black "Durarbayli, Vasif"]
[Result "1/2-1/2"]
[ECO "C88"]
[WhiteElo "2478"]
[BlackElo "2626"]
[Annotator "TA"]
[PlyCount "38"]
[EventDate "2024.09.23"]
[EventType "swiss"]
[EventCountry "USA"]
[SourceTitle "playchess.com"]
[Source "ChessBase"]
[SourceQuality "1"]
[TimeControl "5400+30"]

{[%evp 20,38,12,15,18,14,9,31,18,20,17,16,17,16,16,17,17,16,17,18,15]} 1. e4 {[%emt 0:00:03]} e5 {[%emt 0:00:21]} 2. Nf3 {[%emt 0:00:06]} Nc6 {[%emt 0:00:29]} 3. Bb5 {[%emt 0:00:07][%cal Bf1b5,Bb5a4,Ba4b3][%mdl 32]} a6 {[%emt 0:00:06]} 4. Ba4 {[%emt 0:00:03]} Nf6 {[%emt 0:00:18]} 5. O-O {[%emt 0:00:10]} Be7 {[%emt 0:00:12]} 6. Re1 {[%emt 0:00:14]} b5 {[%emt 0:00:09]} 7. Bb3 {[%emt 0:00:05]} O-O {[%emt 0:00:09]} 8. h3 {[%emt 0:00:15]} Bb7 {[%emt 0:00:16]} 9. d3 {[%emt 0:00:23]} d6 {[%emt 0:00:28]} 10. a3 {[%emt 0:00:31]} Qd7 {[%emt 0:00:38]} 11. Nc3 {[%emt 0:00:31]} Rfe8 {[%emt 0:06:01]} 12. Bg5 {[%emt 0:01:40]} Nd8 {[%emt 0:01:17]} 13. d4 {[%emt 0:02:51]} exd4 {[%emt 0:00:51] White is slightly better.} 14. Nd5 {[%emt 0:04:27] The position is equal.} Nxd5 {[%emt 0:11:07]} 15. exd5 {[%emt 0:00:12]} Bxg5 {[%emt 0:02:15]} 16. Rxe8+ {[%emt 0:00:28]} Qxe8 {[%emt 0:00:52]} 17. Nxg5 {[%emt 0:00:08][%cal Od1d3]} h6 {[%emt 0:01:27]} 18. Nf3 {[%emt 0:00:22]} c5 {[%emt 0:01:05] [#] And now ...Qe4 would win.} 19. dxc6 {[%emt 0:01:26]} Nxc6 {[%emt 0:01:18] An uneventful encounter.   Weighted Error Value: White=0.00 (flawless) /Black=0.00 (flawless) .  OK:         	White=5     	Black=5      Best:        	White=1     	---} 1/2-1/2

[Event "US Masters 2024"]
[Site "Charlotte"]
[Date "2024.11.30"]
[Round "5.5"]
[White "Donchenko, Alexander"]
[Black "Koustav Chatterjee"]
[Result "1-0"]
[ECO "C54"]
[WhiteElo "2617"]
[BlackElo "2510"]
[Annotator "TA"]
[PlyCount "91"]
[EventDate "2024.09.23"]
[EventType "swiss"]
[EventCountry "USA"]
[SourceTitle "playchess.com"]
[Source "ChessBase"]
[SourceQuality "1"]
[TimeControl "5400+30"]

{[%evp 10,91,18,20,29,14,13,5,12,14,15,12,18,11,13,4,46,53,54,43,39,39,64,84,90,100,91,91,129,62,68,56,98,99,84,75,104,99,117,112,140,131,134,138,136,113,127,80,88,39,89,90,120,100,897,319,903,916,889,225,210,-343,254,252,361,354,355,354,670,522,618,601,578,561,570,504,571,491,458,455,470,470,453,406]} 1. e4 {[%emt 0:00:02]} e5 {[%emt 0:02:35]} 2. Nf3 {[%emt 0:00:07]} Nc6 {[%emt 0:00:33]} 3. Bc4 {[%emt 0:00:07]} Nf6 {[%emt 0:00:17]} 4. d3 {[%emt 0:00:10]} Bc5 {[%emt 0:00:33]} 5. c3 {[%emt 0:00:18]} d6 {[%emt 0:00:16]} 6. O-O {[%emt 0:00:13]} a5 {[%emt 0:00:09]} 7. Re1 {[%emt 0:00:15]} O-O {[%emt 0:00:09]} 8. h3 {[%emt 0:00:12]} Be6 {[%emt 0:00:59] The position is equal.} 9. Bb5 {[%emt 0:00:23]} Ba7 {[%emt 0:00:35]} 10. d4 {[%emt 0:02:57] Strongly threatening d5.} Ne7 {[%emt 0:12:28]} 11. Bf1 {[%emt 0:13:53]} Ng6 {[%emt 0:03:13]} 12. Be3 {[%emt 0:00:39]} exd4 {[%emt 0:12:31]} 13. cxd4 {[%emt 0:03:01]} d5 {[%emt 0:00:11]} (13... Nxe4 14. d5 Bxe3 15. Rxe3 $16) 14. e5 {[%emt 0:00:10]} Ne4 {[%emt 0:00:17]} 15. Nc3 {[%emt 0:01:07]} f5 {[%emt 0:06:04]} 16. exf6 $1 {[%emt 0:06:09]} Qxf6 {[%emt 0:02:16]} 17. Nxe4 $1 {[%emt 0:01:25]} dxe4 {[%emt 0:00:09]} 18. Ng5 {[%emt 0:00:10]} h6 {[%emt 0:13:22]} 19. Nxe4 {[%emt 0:04:32]} (19. Nxe6 $1 $16 Qxe6 20. d5) 19... Qf7 $14 {[%emt 0:00:43][%cal Oa8d8]} 20. Qh5 {[%emt 0:03:18]} Bb6 {[%emt 0:07:19]} 21. Nc5 {[%emt 0:06:37]} Bd5 {[%emt 0:01:10]} 22. Rac1 {[%emt 0:00:45]} Rad8 {[%emt 0:01:25][%cal Ba8d8,Bd8d6,Bd6f6][%mdl 32]} 23. b3 {[%emt 0:02:29]} Rd6 {[%emt 0:09:39]} 24. Na4 {[%emt 0:02:42]} Ba7 {[%emt 0:00:38]} 25. Nc3 {[%emt 0:00:47] Threatens to win with Nxd5.} c6 {[%emt 0:04:16][%cal Bc7c6,Bc6d5][%mdl 32]} 26. Nxd5 {[%emt 0:01:14]} cxd5 {[%emt 0:00:08]} 27. Bd3 {[%emt 0:01:49]} Rf6 {[%emt 0:00:21]} 28. Qg4 {[%emt 0:08:23]} ({Better is} 28. Red1) 28... Nf4 $16 {[%emt 0:01:44]} 29. Bb1 {[%emt 0:00:23] This pair of bishops is nice.} (29. Bf1 $16) 29... Ne6 {[%emt 0:01:06]} (29... h5 $14 30. Qd1 Bb8) 30. Qe2 {[%emt 0:08:01] White is more active.} Qd7 {[%emt 0:04:58]} 31. Qd3 {[%emt 0:01:39] Hoping for Qh7+.} Nf4 $2 {[%emt 0:02:00][%mdl 8192]} (31... g5 $16 32. Re2 Bb6) 32. Qh7+ $18 {[%emt 0:01:57]} Kf7 {[%emt 0:00:06]} 33. Bxf4 {[%emt 0:08:15]} Rxf4 {[%emt 0:00:06] [#] Black is weak on the light squares} 34. Rc7 $2 {[%emt 0:00:15]} Qxc7 {[%emt 0:00:23] [#]} 35. Bg6+ $1 {[%emt 0:00:04]} (35. Qg6+ Kg8 36. Qh7+ Kf7 37. Bg6+ (37. Qg6+ Kg8 $18) 37... Kf6 $18) 35... Kf6 {[%emt 0:00:08]} 36. Bh5 $40 {[%emt 0:00:04][%mdl 128] Black is in trouble.} Qf7 {[%emt 0:02:55] Against Qg6+} ({Weaker is} 36... Kg5 37. Qg6+ Kh4 38. Bf3 Bxd4 39. Qh5#) (36... Re4 {was called for.} 37. Qg6+ (37. Rxe4 dxe4 38. Qg6+ Ke7 $18) 37... Ke7 38. Qxg7+ (38. Rxe4+ dxe4 39. Qxg7+ Kd6 $18) 38... Kd6 39. Qxh6+ (39. Qxf8+ Qe7 $18) 39... Ke7 40. Qg7+ Kd6 41. Qxf8+ Qe7 42. Qxe7+ Rxe7 43. Rxe7 Kxe7) 37. Bxf7 {[%emt 0:00:08]} Rxf7 {[%emt 0:00:28]} 38. g3 {[%emt 0:02:40]} Rf5 {[%emt 0:00:35]} (38... Rxd4 39. Qc2 h5) 39. Rd1 {[%emt 0:01:59] White is clearly winning.} Rf8 {[%emt 0:00:08]} 40. Kg2 {[%emt 0:02:59]} Re8 {[%emt 0:00:06]} 41. Rd2 {[%emt 0:01:42] Against Re2} Rf8 {[%emt 0:02:57]} 42. Rd3 {[%emt 0:02:04]} Bb6 {[%emt 0:01:57] [#]} 43. Qxf5+ $3 {[%emt 0:01:12][%mdl 512]} Kxf5 {[%emt 0:00:47]} 44. Rf3+ {[%emt 0:00:02]} Ke4 {[%emt 0:00:06]} 45. Rxf8 {[%emt 0:00:05]} Bxd4 {[%emt 0:00:14]} 46. Kf1 {[%emt 0:00:14] Weighted Error Value: White=0.31/Black=0.40.  Loses game:     	---       	Black=1      Missed win:     	---       	Black=1      Mistake:       	White=3     	Black=3      Inaccurate:     	---       	Black=6      OK:         	White=10    	Black=10     Best:        	White=5     	Black=2      Strong:       	White=2     	---} 1-0

[Event "US Masters 2024"]
[Site "Charlotte"]
[Date "2024.11.30"]
[Round "5.6"]
[White "Antipov, Mikhail Al."]
[Black "Panchanathan, Magesh Chandran"]
[Result "1/2-1/2"]
[ECO "C42"]
[WhiteElo "2602"]
[BlackElo "2461"]
[Annotator "TA"]
[PlyCount "92"]
[EventDate "2024.09.23"]
[EventType "swiss"]
[EventCountry "USA"]
[SourceTitle "playchess.com"]
[Source "ChessBase"]
[SourceQuality "1"]
[TimeControl "5400+30"]

{[%evp 39,92,-92,-118,-149,0,-276,-268,-273,-251,-258,-250,-366,-117,-92,-104,-331,-320,-565,-343,-823,-470,-396,-240,-225,-214,-240,-207,-217,-183,-262,-225,-191,-234,-306,-276,-383,-373,-362,-339,-432,-419,-6079,-413,-410,0,0,0,0,0,0,0,0,0,0,0]} 1. e4 {[%emt 0:01:56]} e5 {[%emt 0:01:35]} 2. Nf3 {[%emt 0:00:14]} d6 {[%emt 0:00:05]} 3. Bc4 {[%emt 0:01:48]} Be7 {[%emt 0:00:24]} 4. O-O {[%emt 0:03:20]} Nf6 {[%emt 0:00:11]} 5. d3 {[%emt 0:00:24]} O-O {[%emt 0:00:20]} 6. Nc3 {[%emt 0:01:21]} h6 {[%emt 0:01:51] C42: Petroff Defence: 3 Nxe5 and unusual White 3rd moves.} 7. h3 {[%emt 0:02:54]} Re8 {[%emt 0:00:06]} 8. a4 {[%emt 0:13:11]} Bf8 {[%emt 0:01:29]} 9. Re1 {[%emt 0:04:46]} a5 {[%emt 0:00:38]} 10. Be3 {[%emt 0:03:50]} c6 {[%emt 0:06:14]} 11. Ba2 $146 {[%emt 0:01:11]} ({Predecessor:} 11. Bb3 Na6 12. d4 exd4 13. Bxd4 Be6 14. Bxe6 Rxe6 15. Qd2 Qe7 16. e5 dxe5 17. Rxe5 {0-1 Xu,Y (2496)-Bosiocic,M (2555) Julius Baer GenCup Pl/In rapid 2024 (2)}) 11... d5 {[%emt 0:05:22]} 12. Bd2 {[%emt 0:00:56]} d4 {[%emt 0:25:09]} 13. Ne2 {[%emt 0:00:48]} Nfd7 {[%emt 0:01:15]} 14. c3 {[%emt 0:02:37]} c5 {[%emt 0:00:24]} 15. Nh2 {[%emt 0:11:57]} Qb6 {[%emt 0:02:24]} 16. f4 {[%emt 0:09:35]} Nc6 {[%emt 0:12:42]} 17. f5 {[%emt 0:08:36]} c4 {[%emt 0:01:21]} 18. cxd4 {[%emt 0:02:47]} cxd3 {[%emt 0:01:14]} 19. Nc3 {[%emt 0:02:25]} Nb4 {[%emt 0:13:17]} 20. Bb3 {[%emt 0:08:29]} exd4 {[%emt 0:01:54]} (20... Qxd4+ $6 21. Be3 Qd6 22. Nb5 $11) 21. Nb5 {[%emt 0:00:42] [#]} Nc5 {[%emt 0:01:35]} (21... Nc2 $1 $17 {[%cal Rc2a1]} 22. Bxf7+ Kxf7 23. Qh5+ Ke7 (23... g6 24. fxg6+ Kg8 25. g7 $11)) 22. Bxb4 $2 {[%emt 0:06:11][%mdl 8192]} (22. Bxf7+ $1 $11 {and White has nothing to worry.} Kxf7 23. Qh5+ Ke7 (23... g6 24. fxg6+ Ke7 25. Qe5+ Ne6 26. Rf1 $16) 24. e5) 22... Nxb3 $19 {[%emt 0:03:42]} 23. Bxf8 {[%emt 0:01:46]} Nxa1 {[%emt 0:00:31]} (23... d2 24. Qxb3 dxe1=B (24... dxe1=R+ $2 25. Rxe1 Rxf8 26. Qd3 $19) 25. Bxg7 Rxe4 26. Qf3 d3+ 27. Kh1) 24. Bxg7 {[%emt 0:00:56]} Kxg7 {[%emt 0:01:54]} 25. Qg4+ {[%emt 0:01:05]} (25. Rf1 $142 Kh8 26. Qh5) 25... Kh7 $2 {[%emt 0:00:20]} (25... Qg6 $19 26. Qd1 Bxf5 27. exf5 Qg3 (27... Qxf5 28. Rxe8 Rxe8 29. Nd6 $11) (27... Rxe1+ $2 28. Qxe1 Qg5 29. Nf1 $19)) 26. Qh5 {[%emt 0:00:32]} Rg8 {[%emt 0:06:16]} (26... Qf6 $6 27. Ng4 Qg7 28. e5 $11 (28. Rxa1 $2 Rxe4 29. Nd6 Re2 $19)) 27. Ng4 $2 {[%emt 0:06:44] [#]} (27. Rxa1 $17 {was forced.} Bd7 28. Ng4) 27... Nc2 $1 $19 {[%emt 0:01:35]} (27... Rxg4 28. hxg4 Kg8 (28... Qf6 29. e5 $11) 29. Rxa1 $11) 28. e5 $2 {[%emt 0:02:23]} (28. Rd1 {was the only chance.} Ne3 29. Qxf7+ Kh8 30. Rxd3 Bxf5 (30... Nxg4 $2 31. hxg4 Rxg4 32. Qe7 $19) 31. exf5) 28... Bxf5 {[%emt 0:01:16]} (28... Rxg4 29. hxg4 Qd8 (29... Nxe1 30. Qxf7+ Kh8 31. f6) 30. Qxf7+ Kh8 31. Nd6 $16) 29. Qxf7+ $2 {[%emt 0:00:58]} (29. Qxf5+ Qg6 30. Qxg6+ Rxg6 31. Rd1) 29... Rg7 {[%emt 0:00:08]} 30. Qxf5+ {[%emt 0:00:07]} Qg6 {[%emt 0:00:07]} 31. Qxg6+ {[%emt 0:00:59]} Kxg6 {[%emt 0:03:00]} 32. Rd1 {[%emt 0:00:13]} h5 {[%emt 0:05:26]} 33. Nf2 {[%emt 0:00:06]} Ne3 {[%emt 0:01:30]} 34. Rxd3 {[%emt 0:00:44]} (34. Rd2 $142) 34... Kh6 {[%emt 0:00:04]} 35. g4 {[%emt 0:00:17]} hxg4 {[%emt 0:00:05]} 36. Nxd4 {[%emt 0:00:51]} gxh3+ {[%emt 0:01:05]} 37. Kh1 {[%emt 0:00:04]} Rf8 {[%emt 0:01:22]} 38. Rxe3 {[%emt 0:01:02]} Rxf2 {[%emt 0:00:04]} 39. e6 {[%emt 0:00:38]} h2 {[%emt 0:00:48]} (39... Rxb2 $2 40. Nf5+ Kg5 41. Nxg7 $18) 40. Ne2 {[%emt 0:00:35]} (40. Re1 $142 Re7 (40... Rxb2 $2 {perishes.} 41. Nf5+ Kh7 42. Nxg7 $18) 41. Nb5) 40... Re7 {[%emt 0:00:43]} (40... Rgg2 $142 {( -> ...Rf1+)} 41. Rh3+ Kg7 42. Rg3+ Rxg3 43. Nxg3 Rxb2 44. Nh5+ Kf8) 41. Nc3 $19 {[%emt 0:00:11]} Rxb2 $2 {[%emt 0:00:47]} (41... Rd2 $19 42. Ne4 Rd1+ (42... Rxb2 $2 43. Nf6 $19) 43. Kxh2 Rxe6) 42. Nd5 $11 {[%emt 0:00:08]} Rg7 {[%emt 0:00:40]} 43. Rh3+ {[%emt 0:00:12]} Kg5 {[%emt 0:00:12]} 44. Rg3+ {[%emt 0:00:08]} Kh6 {[%emt 0:00:05]} 45. Rh3+ {[%emt 0:00:08]} Kg6 {[%emt 0:00:53]} 46. Rg3+ {[%emt 0:00:46]} Kh6 {[%emt 0:00:43]} (46... Kh7 $5 47. Nf6+ $8 Kh6 48. Rxg7 Kxg7 $11) 1/2-1/2

[Event "US Masters 2024"]
[Site "Charlotte"]
[Date "2024.11.29"]
[Round "5.7"]
[White "Heimann, Mark"]
[Black "Nyzhnyk, Illya"]
[Result "1/2-1/2"]
[ECO "D13"]
[WhiteElo "2459"]
[BlackElo "2576"]
[Annotator "TA"]
[PlyCount "29"]
[EventDate "2024.09.23"]
[EventType "swiss"]
[EventCountry "USA"]
[SourceTitle "playchess.com"]
[Source "ChessBase"]
[SourceQuality "1"]
[TimeControl "5400+30"]

{[%evp 16,29,35,31,35,29,21,31,37,14,19,0,0,0,0,-51]} 1. d4 {[%emt 0:02:00]} d5 {[%emt 0:00:12]} 2. c4 {[%emt 0:00:04]} c6 {[%emt 0:00:04]} 3. cxd5 {[%emt 0:00:07]} cxd5 {[%emt 0:00:04]} 4. Bf4 {[%emt 0:00:04]} Nc6 {[%emt 0:00:09]} 5. e3 {[%emt 0:00:05]} Nf6 {[%emt 0:00:10]} 6. Nc3 {[%emt 0:00:08]} a6 {[%emt 0:00:09]} 7. Rc1 {[%emt 0:00:08]} Bf5 {[%emt 0:00:27]} 8. Nf3 {[%emt 0:00:46]} e6 {[%emt 0:00:35]} 9. Qb3 {[%emt 0:00:32]} Ra7 {[%emt 0:17:18]} 10. Ne5 {[%emt 0:00:52]} Nxe5 {[%emt 0:00:05]} 11. Bxe5 {[%emt 0:00:17]} Nd7 {[%emt 0:00:04]} 12. Bg3 {[%emt 0:06:13]} Be7 {[%emt 0:05:12] The position is equal.} 13. f3 {[%emt 0:04:51]} O-O {[%emt 0:01:27]} 14. Be2 {[%emt 0:03:25]} b5 {[%emt 0:16:08]} 15. Bf2 {[%emt 0:10:31] White got outplayed after the opening.   Weighted Error Value: White=0.09 (flawless) /Black=0.02 (flawless) .  Mistake:       	White=1     	---        OK:         	White=1     	Black=1} ({White should try} 15. a4 $11) 1/2-1/2